bitfinex/quotes_BTCUSD_20250408
["timestamp","ask_amount","ask_price","bid_price","bid_amount"]
[1744077781173,0.62267932,80696.0,80687.0,0.0003364]
[1744077781526,0.55474688,80696.0,80687.0,7.7e-07]
[1744077781658,0.260335,80665.0,80664.0,0.41410516]
[1744077781865,0.419095,80665.0,80664.0,0.54349386]
[1744077782740,0.15876,80665.0,80664.0,0.55589086]
[1744077782899,0.15976,80665.0,80664.0,0.54349386]
[1744077783092,0.15876,80665.0,80664.0,0.54349386]
[1744077783495,0.15976,80665.0,80664.0,0.54349386]
[1744077783699,0.172156,80665.0,80664.0,0.54349386]
[1744077784615,0.173156,80665.0,80664.0,0.54349386]
[1744077784820,0.16076,80665.0,80664.0,0.54349386]
[1744077786020,0.15976,80665.0,80664.0,0.54349386]
[1744077786597,0.172156,80665.0,80664.0,0.54349386]
[1744077786926,0.172156,80665.0,80664.0,0.54449386]
[1744077787699,0.512156,80665.0,80664.0,0.41510516]
[1744077788437,0.512156,80665.0,80662.0,5.6e-07]
[1744077788438,0.012397,80663.0,80662.0,5.6e-07]
[1744077788901,0.172156,80665.0,80647.0,9.6e-07]
[1744077788902,0.60039,80648.0,80647.0,9.6e-07]
[1744077789105,0.75915,80648.0,80647.0,9.4e-07]
[1744077789545,0.260415,80640.0,80639.0,0.00029734]
[1744077789723,1.242895,80640.0,80639.0,0.00029734]
[1744077790285,1.582895,80640.0,80639.0,3.4e-07]
[1744077790494,1.67546924,80640.0,80639.0,3.4e-07]
[1744077790690,0.600471,80623.0,80622.0,0.4144]
[1744077790891,0.352403,80622.0,80615.0,0.0003364]
[1744077791432,0.352403,80622.0,80621.0,1e-06]
[1744077792035,0.012405,80607.0,80606.0,4e-07]
[1744077792236,0.600571,80592.0,80591.0,0.002]
[1744077792456,0.759371,80592.0,80591.0,0.1313887]
[1744077792655,0.759371,80592.0,80591.0,0.13180889]
[1744077793326,0.759371,80592.0,80591.0,0.13280889]
[1744077793960,0.77227564,80592.0,80591.0,0.00342019]
[1744077796019,0.77227564,80592.0,80591.0,0.13280889]
[1744077796691,0.77227564,80592.0,80591.0,0.13380889]
[1744077796891,0.77527564,80592.0,80591.0,0.13380889]
[1744077797117,0.77527564,80592.0,80591.0,0.13180889]
[1744077797516,0.77827564,80592.0,80591.0,0.13180889]
[1744077799225,0.412963,80592.0,80591.0,0.13180889]
[1744077799422,0.16448,80592.0,80591.0,0.13180889]
[1744077800213,0.16148,80592.0,80591.0,0.13180889]
[1744077800870,0.15848,80592.0,80591.0,0.13180889]
[1744077801227,0.16148,80592.0,80591.0,0.13180889]
[1744077801931,0.003,80592.0,80591.0,0.20755774]
[1744077802136,0.16148,80592.0,80591.0,0.19514974]
[1744077802338,0.16448,80592.0,80591.0,0.19514974]
[1744077802975,0.16148,80592.0,80591.0,0.19514974]
[1744077803174,0.16148,80592.0,80591.0,0.19614974]
[1744077803377,0.16148,80592.0,80591.0,0.19714974]
[1744077803580,0.16079846,80592.0,80591.0,0.62395774]
[1744077803755,0.15848,80592.0,80591.0,0.60954974]
[1744077803924,0.15848,80592.0,80591.0,0.61054974]
[1744077804125,0.15848,80592.0,80591.0,0.61254974]
[1744077804336,0.15848,80592.0,80591.0,0.59800889]
[1744077806004,0.15848,80592.0,80591.0,0.59600889]
[1744077806182,0.15848,80592.0,80591.0,0.59500889]
[1744077806384,0.15848,80592.0,80591.0,0.54820889]
[1744077806585,0.15848,80592.0,80591.0,0.55020889]
[1744077807339,0.15848,80592.0,80591.0,0.55120889]
[1744077807631,0.170888,80592.0,80591.0,0.55120889]
[1744077807780,0.510888,80592.0,80591.0,0.55120889]
[1744077809493,0.510888,80592.0,80591.0,0.13680889]
[1744077810296,0.510888,80592.0,80591.0,0.13480889]
[1744077810610,0.510888,80592.0,80591.0,0.13180889]
[1744077810816,0.513888,80592.0,80591.0,0.13180889]
[1744077811360,0.515888,80592.0,80591.0,0.13180889]
[1744077811704,0.764051,80592.0,80591.0,0.13180889]
[1744077812106,0.764051,80592.0,80591.0,0.00242019]
[1744077812308,0.352408,80591.0,80590.0,9.9e-07]
[1744077812506,0.452408,80591.0,80590.0,0.00012679]
[1744077812711,0.452408,80591.0,80590.0,7.9e-07]
[1744077812918,0.499908,80591.0,80590.0,7.9e-07]
[1744077813117,0.499908,80591.0,80578.0,7.9e-07]
[1744077813118,0.012409,80582.0,80578.0,7.9e-07]
[1744077813450,0.600613,80579.0,80578.0,7.9e-07]
[1744077814342,0.600613,80579.0,80578.0,0.00100079]
[1744077814655,0.600613,80579.0,80578.0,7.9e-07]
[1744077815666,0.600629,80574.0,80549.0,0.0492]
[1744077815845,1.742869,80574.0,80549.0,0.0492]
[1744077816793,1.746869,80574.0,80549.0,0.0492]
[1744077816992,1.750869,80574.0,80549.0,0.0492]
[1744077817903,0.600668,80562.0,80547.0,0.4144]
[1744077818222,0.600668,80562.0,80561.0,0.00212611]
[1744077818560,0.600668,80562.0,80561.0,1.1e-07]
[1744077818916,0.6007,80552.0,80551.0,5e-08]
[1744077819142,0.75922,80552.0,80551.0,5e-08]
[1744077820069,0.600736,80541.0,80540.0,0.0001685]
[1744077820374,1.584536,80541.0,80540.0,5e-07]
[1744077820777,1.60639294,80541.0,80540.0,5e-07]
[1744077821433,1.60939294,80541.0,80540.0,5e-07]
[1744077821664,0.60056647,80532.0,80531.0,0.002]
[1744077821886,0.60056647,80532.0,80531.0,0.00242001]
[1744077821887,0.75912647,80532.0,80531.0,0.00242001]
[1744077823639,0.75912647,80532.0,80531.0,0.00542001]
[1744077828381,0.85912647,80532.0,80531.0,1e-08]
[1744077828584,0.90672647,80532.0,80531.0,1e-08]
[1744077828729,0.85912647,80532.0,80531.0,1e-08]
[1744077828933,0.75912647,80532.0,80531.0,1e-08]
[1744077829949,0.75856647,80532.0,80531.0,1e-08]
[1744077831765,0.75856647,80532.0,80531.0,0.12938871]
[1744077832108,0.498,80532.0,80531.0,0.12938871]
[1744077832406,0.510417,80532.0,80531.0,0.12938871]
[1744077832784,0.158,80532.0,80531.0,0.12938871]
[1744077833000,0.99627484,80541.0,80534.0,0.012417]
[1744077833202,0.158,80540.0,80535.0,0.1293887]
[1744077833382,0.012416,80538.0,80537.0,0.0453]
[1744077833585,0.012416,80538.0,80537.0,0.1746887]
[1744077833786,0.352416,80538.0,80537.0,0.1746887]
[1744077834003,0.352416,80538.0,80537.0,0.1293887]
[1744077834416,0.012418,80525.0,80524.0,0.0472]
[1744077834616,0.758789,80525.0,80524.0,0.12951483]
[1744077835539,0.600789,80525.0,80524.0,0.12951483]
[1744077835700,0.758789,80525.0,80524.0,0.12951483]
[1744077835900,0.758789,80525.0,80524.0,0.13451483]
[1744077836544,0.758789,80525.0,80524.0,0.13851483]
[1744077836764,0.498,80525.0,80524.0,0.13851483]
[1744077836958,0.510418,80525.0,80524.0,0.13851483]
[1744077837961,0.50973569,80525.0,80524.0,0.00912613]
[1744077838770,0.50973569,80525.0,80524.0,0.00412613]
[1744077839210,0.50973569,80525.0,80524.0,0.00812613]
[1744077839421,0.75810569,80525.0,80524.0,0.00812613]
[1744077839986,0.75810569,80525.0,80524.0,0.00412613]
[1744077840188,0.75810569,80525.0,80524.0,1.3e-07]
[1744077840601,0.600833,80511.0,80510.0,0.0003364]
[1744077840822,1.585313,80511.0,80510.0,0.1297251]
[1744077841469,1.32448,80511.0,80510.0,0.1297251]
[1744077841660,1.3369,80511.0,80510.0,0.1307251]
[1744077842292,1.34633348,80511.0,80510.0,0.0013364]
[1744077842495,1.46864681,80511.0,80510.0,0.0013364]
[1744077842847,1.34633348,80511.0,80510.0,0.0013364]
[1744077843612,1.34633348,80511.0,80510.0,4e-07]
[1744077844252,0.012422,80502.0,80501.0,0.002]
[1744077844448,0.758863,80502.0,80501.0,0.00212618]
[1744077845426,0.758863,80502.0,80501.0,0.00412618]
[1744077846274,0.758863,80502.0,80501.0,0.00612618]
[1744077847564,0.758863,80502.0,80501.0,0.13551488]
[1744077847968,0.758863,80502.0,80501.0,0.00612618]
[1744077848287,0.758863,80502.0,80501.0,0.13551488]
[1744077850076,0.758863,80502.0,80501.0,0.00612618]
[1744077851733,0.600863,80502.0,80501.0,0.00612618]
[1744077851950,0.758903,80502.0,80501.0,0.00612618]
[1744077853015,0.15804,80502.0,80501.0,0.13551488]
[1744077853482,0.49804,80502.0,80501.0,0.13551488]
[1744077853674,0.170462,80502.0,80501.0,0.54991488]
[1744077853807,0.510462,80502.0,80501.0,0.54991488]
[1744077857604,0.510462,80502.0,80501.0,0.54970975]
[1744077861801,0.510462,80502.0,80501.0,0.42032105]
[1744077865210,0.510462,80502.0,80501.0,0.00592105]
[1744077865756,1.495302,80502.0,80501.0,0.00592105]
[1744077867089,1.57207333,80502.0,80501.0,0.00592105]
[1744077867280,1.495302,80502.0,80501.0,5e-08]
[1744077868828,1.495302,80502.0,80498.0,0.0001685]
[1744077868829,0.012422,80499.0,80498.0,0.0001685]
[1744077869031,0.600872,80499.0,80498.0,0.0001685]
[1744077870119,0.758912,80499.0,80498.0,0.0001685]
[1744077870317,0.603872,80499.0,80498.0,0.0001685]
[1744077870682,0.761912,80499.0,80498.0,0.1295572]
[1744077870805,0.764912,80499.0,80498.0,0.1295572]
[1744077871596,0.006,80499.0,80498.0,0.1295572]
[1744077871819,0.16404,80499.0,80498.0,0.1295572]
[1744077872033,0.516462,80499.0,80498.0,0.1295572]
[1744077878423,0.516462,80499.0,80498.0,0.0001685]
[1744077878832,0.64586745,80499.0,80498.0,0.0001685]
[1744077879038,0.516462,80499.0,80498.0,0.0001685]
[1744077882540,0.516462,80499.0,80498.0,5e-07]
[1744077884041,0.55245614,80499.0,80498.0,5e-07]
[1744077886510,0.39441614,80499.0,80498.0,5e-07]
[1744077886714,0.516502,80499.0,80498.0,5e-07]
[1744077889515,0.60092,80484.0,80483.0,0.4097372]
[1744077889714,0.75896,80484.0,80483.0,0.5391259]
[1744077891138,0.7717237,80484.0,80483.0,0.5391259]
[1744077892253,0.7717237,80484.0,80483.0,0.5431259]
[1744077892940,0.7727237,80484.0,80483.0,0.5431259]
[1744077893762,1.48304,80484.0,80483.0,0.5391259]
[1744077895022,1.325,80484.0,80483.0,0.5391259]
[1744077895195,1.48304,80484.0,80483.0,0.5411259]
[1744077895987,1.495464,80484.0,80483.0,0.5411259]
[1744077896565,1.48304,80484.0,80483.0,0.5411259]
[1744077896766,1.731536,80484.0,80483.0,0.5411259]
[1744077896971,1.74396,80484.0,80483.0,0.5411259]
[1744077898397,1.48304,80484.0,80483.0,0.5411259]
[1744077899611,1.495464,80484.0,80483.0,0.5411259]
[1744077899938,1.48304,80484.0,80483.0,0.5411259]
[1744077900368,1.14304,80484.0,80483.0,0.8020489]
[1744077900764,1.14304,80484.0,80483.0,0.5411259]
[1744077901500,1.74396,80484.0,80483.0,0.5411259]
[1744077903093,1.74396,80484.0,80483.0,0.53957976]
[1744077903308,1.74396,80484.0,80483.0,0.41019106]
[1744077904325,1.74396,80484.0,80483.0,0.002]
[1744077904908,1.78916,80484.0,80483.0,0.002]
[1744077905144,0.600943,80477.0,80476.0,8e-05]
[1744077905347,0.34,80477.0,80476.0,0.1294687]
[1744077905547,0.34,80477.0,80476.0,0.3904157]
[1744077905548,0.49804,80477.0,80476.0,0.3904157]
[1744077906299,0.985,80484.0,80483.0,0.260923]
[1744077906496,1.14304,80484.0,80483.0,0.1293887]
[1744077906752,1.40396,80484.0,80483.0,0.1293887]
[1744077906967,1.48304,80484.0,80483.0,0.1293887]
[1744077908620,1.48304,80484.0,80483.0,0.1303887]
[1744077908821,1.48304,80484.0,80483.0,0.3913117]
[1744077909056,1.48304,80484.0,80483.0,0.1448127]
[1744077909309,1.48304,80484.0,80483.0,0.1323887]
[1744077910564,1.74396,80484.0,80483.0,0.1323887]
[1744077911676,1.58592,80484.0,80483.0,0.1323887]
[1744077911909,1.74396,80484.0,80483.0,0.1323887]
[1744077915643,1.48304,80484.0,80483.0,0.1448127]
[1744077915837,1.48304,80484.0,80483.0,0.1930127]
[1744077916015,1.48304,80484.0,80483.0,0.1805887]
[1744077917313,1.48304,80484.0,80483.0,0.1323887]
[1744077917932,1.48304,80484.0,80483.0,0.54057976]
[1744077918133,1.48304,80484.0,80483.0,0.80150276]
[1744077918552,1.48304,80484.0,80483.0,0.54057976]
[1744077918752,1.495464,80484.0,80483.0,0.54057976]
[1744077919158,1.48304,80484.0,80483.0,0.54057976]
[1744077919379,1.495464,80484.0,80483.0,0.54057976]
[1744077919598,1.48304,80484.0,80483.0,0.55300376]
[1744077919990,1.48304,80484.0,80483.0,0.60120376]
[1744077920506,1.325,80484.0,80483.0,0.60120376]
[1744077920669,0.985,80484.0,80483.0,0.60120376]
[1744077921110,0.260885,80495.0,80483.0,0.60120376]
[1744077921111,0.0003368,80517.0,80513.0,0.01242]
[1744077921335,0.0003368,80517.0,80501.0,0.296642]
[1744077921336,0.248428,80506.0,80501.0,0.296642]
[1744077921578,0.34,80513.0,80507.0,0.248425]
[1744077921778,0.34,80513.0,80512.0,0.01242]
[1744077921982,0.49796,80513.0,80512.0,0.1418087]
[1744077922127,0.51038,80513.0,80512.0,0.1293887]
[1744077922315,0.49796,80513.0,80512.0,0.1293887]
[1744077923152,0.49996,80513.0,80512.0,0.1293887]
[1744077923359,0.49996,80513.0,80512.0,0.1418087]
[1744077923992,0.49996,80513.0,80512.0,0.1293887]
[1744077924121,0.51238,80513.0,80512.0,0.1293887]
[1744077925150,0.35442,80513.0,80512.0,0.1303887]
[1744077925354,0.51234,80513.0,80512.0,0.1303887]
[1744077925668,0.49992,80513.0,80512.0,0.1428087]
[1744077926237,0.49992,80513.0,80512.0,0.5572087]
[1744077927197,0.49992,80513.0,80512.0,0.5447887]
[1744077927384,0.49992,80513.0,80512.0,0.8056187]
[1744077927993,0.15992,80513.0,80512.0,0.82015955]
[1744077928143,0.15992,80513.0,80512.0,0.86595955]
[1744077928584,0.15992,80513.0,80512.0,0.5905887]
[1744077928743,0.15992,80513.0,80512.0,0.5447887]
[1744077928950,0.15992,80513.0,80512.0,0.5572087]
[1744077929200,0.15992,80513.0,80512.0,0.8056187]
[1744077930467,0.15992,80513.0,80512.0,0.5447887]
[1744077930468,0.51234,80513.0,80512.0,0.5447887]
[1744077930883,0.49992,80513.0,80512.0,0.5447887]
[1744077931105,0.51234,80513.0,80512.0,0.5447887]
[1744077931513,0.49992,80513.0,80512.0,0.5572087]
[1744077931688,0.49992,80513.0,80512.0,0.8056187]
[1744077931886,0.49992,80513.0,80512.0,0.5437887]
[1744077932296,0.760747,80513.0,80512.0,0.5447887]
[1744077932605,0.49992,80513.0,80512.0,0.5572087]
[1744077932789,0.49792,80513.0,80512.0,0.5447887]
[1744077933193,0.49892,80513.0,80512.0,0.5447887]
[1744077933410,0.747327,80513.0,80512.0,0.5447887]
[1744077933667,0.758747,80513.0,80512.0,0.5447887]
[1744077934165,0.51034,80513.0,80512.0,0.5447887]
[1744077934504,0.49792,80513.0,80512.0,0.5447887]
[1744077935233,0.49792,80513.0,80512.0,0.8056187]
[1744077935569,0.49792,80513.0,80512.0,0.5572087]
[1744077935779,0.49792,80513.0,80512.0,0.5447887]
[1744077936560,0.49792,80513.0,80512.0,0.8056187]
[1744077936769,0.49792,80513.0,80512.0,0.5447887]
[1744077937943,0.49792,80513.0,80512.0,0.5572087]
[1744077939252,0.49792,80513.0,80512.0,0.5447887]
[1744077940647,0.49792,80513.0,80512.0,0.5572087]
[1744077943218,0.33745601,80513.0,80512.0,0.5572087]
[1744077943414,0.49533601,80513.0,80512.0,0.5572087]
[1744077944895,0.49533601,80513.0,80512.0,0.5447887]
[1744077945096,0.49533601,80513.0,80512.0,0.5572087]
[1744077945298,0.49533601,80513.0,80512.0,0.5447887]
[1744077946809,0.49533601,80513.0,80512.0,0.8056187]
[1744077948206,0.49533601,80513.0,80512.0,0.8538187]
[1744077948629,0.15788,80513.0,80512.0,0.8538187]
[1744077948826,0.15788,80513.0,80512.0,0.91785955]
[1744077949509,0.5103,80513.0,80512.0,0.5447887]
[1744077949728,0.5103,80513.0,80512.0,0.1303887]
[1744077950049,0.5103,80513.0,80512.0,0.1293887]
[1744077950191,0.5103,80513.0,80512.0,0.1313887]
[1744077950411,0.51018,80513.0,80512.0,0.004]
[1744077950609,0.60388,80513.0,80512.0,0.004]
[1744077951043,0.61335857,80513.0,80512.0,0.004]
[1744077951547,0.49776,80513.0,80512.0,0.002]
[1744077951778,0.51018,80513.0,80512.0,0.1313887]
[1744077952043,0.51618,80513.0,80512.0,0.1323887]
[1744077952454,0.51018,80513.0,80512.0,0.1293887]
[1744077952672,0.51618,80513.0,80512.0,0.1293887]
[1744077952864,0.52318,80513.0,80512.0,0.1303887]
[1744077953202,0.51618,80513.0,80512.0,0.1293887]
[1744077953816,0.34,80498.0,80494.0,0.248465]
[1744077954054,0.34,80498.0,80492.0,0.012423]
[1744077954055,0.1578,80497.0,80495.0,0.1293887]
[1744077954210,0.406258,80497.0,80495.0,0.1293887]
[1744077954411,0.012422,80496.0,80495.0,0.1293887]
[1744077954610,0.352422,80496.0,80495.0,0.1293887]
[1744077955433,0.352422,80496.0,80495.0,0.1313887]
[1744077955653,0.352422,80496.0,80495.0,0.1333887]
[1744077955867,0.352422,80496.0,80495.0,0.1313887]
[1744077956274,0.352422,80496.0,80495.0,0.1333887]
[1744077956452,0.352422,80496.0,80495.0,0.1353887]
[1744077956654,0.352422,80496.0,80495.0,0.1313887]
[1744077957381,0.352422,80496.0,80495.0,0.002]
[1744077958108,0.352422,80496.0,80495.0,0.1293887]
[1744077958508,0.353422,80496.0,80495.0,0.1293887]
[1744077958916,0.346,80496.0,80495.0,0.1293887]
[1744077959052,0.358422,80496.0,80495.0,0.1293887]
[1744077959393,0.370422,80496.0,80495.0,0.1303887]
[1744077959556,0.358422,80496.0,80495.0,0.1303887]
[1744077959972,0.362422,80496.0,80495.0,0.1303887]
[1744077960174,0.35,80496.0,80495.0,0.1303887]
[1744077960601,0.344,80496.0,80495.0,0.3902737]
[1744077960829,0.1618,80496.0,80495.0,0.4387737]
[1744077961001,0.1648,80496.0,80495.0,0.86771455]
[1744077961692,0.1638,80496.0,80495.0,0.86771455]
[1744077961880,0.1578,80496.0,80495.0,0.86771455]
[1744077962103,0.1588,80496.0,80495.0,0.86771455]
[1744077962511,0.1578,80496.0,80495.0,0.86771455]
[1744077962662,0.1578,80496.0,80495.0,0.5437887]
[1744077962863,0.1578,80496.0,80495.0,0.5467887]
[1744077963069,0.1578,80496.0,80495.0,0.8076737]
[1744077963270,0.1578,80496.0,80495.0,0.5467887]
[1744077963506,0.4988,80496.0,80495.0,0.5507887]
[1744077963711,0.747259,80496.0,80495.0,0.5507887]
[1744077964425,0.759681,80496.0,80495.0,0.5507887]
[1744077964951,0.4988,80496.0,80495.0,0.5527887]
[1744077965281,0.758681,80496.0,80495.0,0.54113025]
[1744077965617,0.759681,80496.0,80495.0,0.54113025]
[1744077965783,0.759681,80496.0,80495.0,0.54313025]
[1744077965987,0.758681,80496.0,80495.0,0.54113025]
[1744077966182,0.758681,80496.0,80495.0,0.4144]
[1744077966386,0.758681,80496.0,80495.0,0.4154]
[1744077968624,0.758681,80496.0,80495.0,0.001]
[1744077968824,0.759681,80496.0,80495.0,0.001]
[1744077969222,0.34,80480.0,80477.0,0.4144]
[1744077969546,0.4978,80479.0,80478.0,0.1293887]
[1744077969885,0.510225,80479.0,80478.0,0.1293887]
[1744077970553,0.51028737,80479.0,80478.0,0.1293887]
[1744077970747,0.51028737,80479.0,80478.0,0.1313887]
[1744077970950,0.52268391,80479.0,80478.0,0.1313887]
[1744077971126,0.51025891,80479.0,80478.0,0.1293887]
[1744077971533,0.49786237,80479.0,80478.0,0.1293887]
[1744077972280,0.51032737,80479.0,80478.0,0.1293887]
[1744077972422,0.51032737,80479.0,80478.0,0.1313887]
[1744077973084,0.51032737,80479.0,80478.0,0.1323887]
[1744077973459,0.51032737,80479.0,80478.0,0.1343887]
[1744077973658,0.75883937,80479.0,80478.0,0.1343887]
[1744077973864,0.75883937,80479.0,80478.0,0.5487887]
[1744077974182,0.75883937,80479.0,80478.0,0.5457887]
[1744077974383,0.77124096,80479.0,80478.0,0.002]
[1744077974681,0.600943,80477.0,80476.0,8e-05]
[1744077976278,0.613943,80477.0,80476.0,0.00108]
[1744077976532,0.606943,80477.0,80476.0,0.00108]
[1744077976729,0.614943,80477.0,80476.0,0.1314687]
[1744077976907,0.621943,80477.0,80476.0,0.1314687]
[1744077977325,0.628943,80477.0,80476.0,0.1314687]
[1744077978050,0.614943,80477.0,80476.0,0.1294687]
[1744077978227,0.621943,80477.0,80476.0,0.00108]
[1744077978415,0.361,80477.0,80476.0,0.1304687]
[1744077978614,0.607943,80477.0,80476.0,0.1304687]
[1744077978814,0.612943,80477.0,80476.0,0.1304687]
[1744077979015,0.60737823,80477.0,80476.0,0.1304687]
[1744077979430,0.60737823,80477.0,80476.0,0.1294687]
[1744077979630,0.61437823,80477.0,80476.0,0.1304687]
[1744077981055,0.60737823,80477.0,80476.0,0.1294687]
[1744077981257,0.60737823,80477.0,80476.0,0.1304687]
[1744077981461,0.61437823,80477.0,80476.0,0.1304687]
[1744077982067,0.019,80477.0,80476.0,0.1428947]
[1744077982566,0.019,80477.0,80476.0,0.1304687]
[1744077982742,0.007,80477.0,80476.0,0.1428947]
[1744077982942,0.34,80478.0,80477.0,0.012425]
[1744077983143,0.34,80478.0,80477.0,0.1418137]
[1744077983735,0.34,80478.0,80477.0,0.1293887]
[1744077983940,0.15776,80478.0,80477.0,0.1293887]
[1744077984544,0.4187,80478.0,80477.0,0.1293887]
[1744077984976,0.408275,80478.0,80477.0,0.1293887]
[1744077985176,0.4207,80478.0,80477.0,0.1293887]
[1744077985388,0.15976,80478.0,80477.0,0.1293887]
[1744077985975,0.16176,80478.0,80477.0,0.1293887]
[1744077986181,0.174185,80478.0,80477.0,0.1293887]
[1744077986415,0.16176,80478.0,80477.0,0.1293887]
[1744077987566,0.16176,80478.0,80477.0,0.1418137]
[1744077987742,0.16176,80478.0,80477.0,0.1293887]
[1744077988560,0.174185,80478.0,80477.0,0.1293887]
[1744077988759,0.514185,80478.0,80477.0,0.1293887]
[1744077988973,0.600943,80477.0,80476.0,8e-05]
[1744077990539,0.604943,80477.0,80476.0,8e-05]
[1744077991295,0.602943,80477.0,80476.0,8e-05]
[1744077991491,0.603943,80477.0,80476.0,8e-05]
[1744077991694,0.16476,80477.0,80476.0,0.4835157]
[1744077991917,0.16476,80477.0,80476.0,0.8979157]
[1744077992846,0.007,80477.0,80476.0,0.91245655]
[1744077993152,0.004,80477.0,80476.0,0.91245655]
[1744077993313,0.15776,80478.0,80477.0,0.02696585]
[1744077993514,0.15776,80478.0,80477.0,0.15635455]
[1744077993922,6.237e-05,80479.0,80478.0,0.27548085]
[1744077994119,0.34006237,80479.0,80478.0,0.40486955]
[1744077994921,0.34206237,80479.0,80478.0,0.40486955]
[1744077996462,0.16282237,80479.0,80478.0,0.40486955]
[1744077997283,0.16282237,80479.0,80478.0,0.81926955]
[1744077997611,0.985,80509.0,80508.0,0.260843]
[1744077997728,1.14272,80509.0,80508.0,0.3902317]
[1744077997932,1.14272,80509.0,80508.0,0.8046317]
[1744077998227,1.48272,80509.0,80508.0,0.8046317]
[1744077998584,0.1580568,80517.0,80516.0,0.260816]
[1744077998805,0.1580568,80517.0,80516.0,0.3902047]
[1744077998929,0.15811951,80517.0,80516.0,0.3902047]
[1744077999350,0.41893251,80517.0,80516.0,0.1293887]
[1744077999560,0.49811951,80517.0,80516.0,0.5437887]
[1744077999762,0.49811951,80517.0,80516.0,0.5562077]
[1744078003936,0.49811951,80517.0,80516.0,0.5437887]
[1744078004136,0.35281851,80517.0,80516.0,0.5437887]
[1744078004446,0.49807951,80517.0,80516.0,0.5562077]
[1744078005726,0.34039951,80517.0,80516.0,0.5562077]
[1744078006147,0.00039951,80517.0,80516.0,0.57074855]
[1744078006352,3.5e-07,80534.0,80531.0,0.260768]
[1744078006521,1.5e-07,80535.0,80534.0,0.02695785]
[1744078006880,0.0003368,80546.0,80534.0,0.02695785]
[1744078006881,0.0003368,80546.0,80545.0,0.02695585]
[1744078007109,0.0003368,80546.0,80545.0,0.40465255]
[1744078007312,0.00046293,80546.0,80545.0,0.40465255]
[1744078008369,0.00046293,80546.0,80545.0,0.40565255]
[1744078008911,0.00046293,80546.0,80545.0,0.40665255]
[1744078010217,0.00046293,80546.0,80545.0,0.3921117]
[1744078010422,0.00046293,80546.0,80545.0,0.40665255]
[1744078011247,0.0003366,80550.0,80545.0,0.40665255]
[1744078011248,5.3e-07,80550.0,80549.0,0.26071]
[1744078011447,0.1578966,80557.0,80556.0,0.260687]
[1744078011749,0.1578966,80557.0,80556.0,0.81901551]
[1744078011892,0.0003366,80557.0,80556.0,0.81901551]
[1744078012094,0.0003366,80557.0,80556.0,0.54378766]
[1744078012673,0.0003366,80557.0,80556.0,0.55620066]
[1744078012795,0.4978966,80557.0,80556.0,0.55620066]
[1744078014155,0.4978966,80557.0,80556.0,0.56120066]
[1744078014296,0.4978966,80557.0,80556.0,0.55820066]
[1744078015173,0.4978966,80557.0,80556.0,0.56020066]
[1744078015785,0.3403366,80557.0,80556.0,0.56020066]
[1744078016026,0.4978566,80557.0,80556.0,0.56020066]
[1744078016432,0.4978566,80557.0,80556.0,0.61010066]
[1744078016746,0.002,80559.0,80558.0,0.012413]
[1744078016992,0.002,80559.0,80558.0,0.15634255]
[1744078017370,0.002,80559.0,80558.0,0.17861783]
[1744078017871,0.002,80559.0,80558.0,0.18975524]
[1744078018075,0.002,80559.0,80558.0,0.19475524]
[1744078018602,0.002,80559.0,80558.0,0.19975524]
[1744078018794,0.0003372,80565.0,80558.0,0.19975524]
[1744078018956,0.98452,80574.0,80558.0,0.19975524]
[1744078018957,1.142,80574.0,80573.0,0.012411]
[1744078019153,1.142,80574.0,80573.0,0.85432066]
[1744078019352,1.142,80574.0,80573.0,0.56606294]
[1744078019353,1.48212611,80574.0,80573.0,0.56606294]
[1744078019540,1.14212611,80574.0,80573.0,0.56606294]
[1744078019745,1.49453611,80574.0,80573.0,0.56606294]
[1744078020075,1.48512611,80574.0,80573.0,0.57847394]
[1744078020484,1.14512611,80574.0,80573.0,0.57847394]
[1744078020685,1.48212611,80574.0,80573.0,0.57847394]
[1744078020881,1.48212611,80574.0,80573.0,0.59061822]
[1744078021107,1.48212611,80574.0,80573.0,0.59161822]
[1744078021549,1.48212611,80574.0,80573.0,0.59061822]
[1744078021708,1.48212611,80574.0,80573.0,0.59261822]
[1744078022924,1.48212611,80574.0,80573.0,0.59461822]
[1744078023171,1.48212611,80574.0,80573.0,0.58220722]
[1744078023329,1.48212611,80574.0,80573.0,0.59461822]
[1744078023529,0.0003368,80576.0,80575.0,0.01241]
[1744078023913,0.0003368,80576.0,80575.0,0.55867949]
[1744078024085,0.0003368,80576.0,80575.0,0.57847294]
[1744078024230,0.0003368,80576.0,80575.0,0.58961722]
[1744078025089,0.0003368,80576.0,80575.0,0.60415807]
[1744078025461,0.0003368,80576.0,80575.0,0.57720722]
[1744078025848,0.0003368,80576.0,80575.0,0.58961722]
[1744078025980,0.0003368,80576.0,80575.0,0.57720722]
[1744078026319,0.1578168,80576.0,80575.0,0.57720722]
[1744078026681,0.1578168,80576.0,80575.0,0.55493194]
[1744078027523,0.1578168,80576.0,80575.0,0.56734194]
[1744078029610,0.1578168,80576.0,80575.0,0.58188279]
[1744078030864,0.1578168,80576.0,80575.0,0.58788279]
[1744078031087,0.0003368,80576.0,80575.0,0.58788279]
[1744078031499,0.0003368,80576.0,80575.0,0.56093194]
[1744078031909,0.0003368,80576.0,80575.0,0.57334194]
[1744078032920,0.0003368,80576.0,80575.0,0.56093194]
[1744078033576,0.0003368,80576.0,80575.0,0.57334194]
[1744078033745,0.0003366,80580.0,80579.0,0.01241]
[1744078033976,0.15744,80587.0,80586.0,0.012409]
[1744078034173,0.15744,80587.0,80586.0,0.3899767]
[1744078034751,0.15744,80587.0,80586.0,0.40112098]
[1744078034951,0.15744,80587.0,80586.0,0.40999331]
[1744078035405,0.15744,80587.0,80586.0,0.55493194]
[1744078035546,0.15744,80587.0,80586.0,0.57738642]
[1744078035744,0.15744,80587.0,80586.0,0.83797742]
[1744078036012,0.15944,80587.0,80586.0,0.57738642]
[1744078036158,0.15944,80587.0,80586.0,0.58979542]
[1744078036643,0.15944,80587.0,80586.0,0.57738642]
[1744078036844,0.15744,80587.0,80586.0,0.57738642]
[1744078037144,0.15744,80587.0,80586.0,0.58979542]
[1744078037344,0.15944,80587.0,80586.0,0.63959542]
[1744078037643,0.1577768,80590.0,80588.0,0.012408]
[1744078037842,0.1577768,80590.0,80588.0,0.16425118]
[1744078038057,0.15944,80589.0,80588.0,0.16425118]
[1744078038282,0.15944,80589.0,80588.0,0.17539546]
[1744078038476,0.0003368,80590.0,80589.0,0.26058]